fUSD/lending_fUSD_20240727
["ID","MTS","AMOUNT","RATE_DAILY","PERIOD"]
[333390863,1722097837898,-490.1733676,0.000106,2]
[333390864,1722097837910,-630.37381688,0.000106,2]
[333390865,1722097837945,-672.16249084,0.000106,2]
[333390897,1722097839709,-3374.33453983,0.000106,2]
[333390898,1722097839765,-3108.2,0.000106,2]
[333390899,1722097839777,-250.86729399,0.000106,2]
[333390900,1722097839878,-870645.43617681,0.000106,2]
[333390911,1722097842879,-5958.007393,0.000106,2]
[333390912,1722097842897,-530.05992504,0.000106,2]
[333390913,1722097842910,-1267.53629767,0.000106,2]
[333390914,1722097842925,-1299.42,0.000106,2]
[333390915,1722097842939,-571.48088153,0.000106,2]
[333390916,1722097842950,-700.62786193,0.000106,2]
[333390917,1722097842964,-280995.59265915,0.000106,2]
[333390938,1722097845662,-1381.05048012,0.000106,2]
[333390940,1722097845673,-269.88169796,0.000106,2]
[333390954,1722097845835,-6020.02547138,0.000106,2]
[333390956,1722097845847,-6907.7,0.000106,2]
[333390959,1722097846005,-2733.38035353,0.000106,2]
[333390962,1722097890781,150.0,0.0001811,120]
[333390963,1722098038109,151.17,0.0001337,30]
[333390964,1722098130723,150.0,0.00017574,120]
[333390965,1722098190749,150.0,0.0001753,120]
[333390966,1722098298607,457.49,8.219e-05,2]
[333390967,1722098357470,155.0,8.219e-05,2]
[333390968,1722098362006,5110.89,8.219e-05,2]
[333390969,1722098362029,2458.41838559,8.219e-05,2]
[333390970,1722098363123,257.1808211,8.219e-05,2]
[333390971,1722098365866,797.30336427,8.219e-05,2]
[333390972,1722098369340,6487.09742904,8.219e-05,2]
[333390973,1722098369363,10000.0,8.219e-05,2]
[333390974,1722098369386,10000.0,8.219e-05,2]
[333390975,1722098369408,10000.0,8.219e-05,2]
[333390976,1722098369430,10000.0,8.219e-05,2]
[333390977,1722098369452,10000.0,8.219e-05,2]
[333390978,1722098369474,10000.0,8.219e-05,2]
[333390979,1722098369496,10000.0,8.219e-05,2]
[333390981,1722098430822,150.0,0.00017787,120]
[333390982,1722098490817,150.0,0.00016939,120]
[333390983,1722098491027,151.17,0.0001337,30]
[333391048,1722099040075,-434.61,8.219e-05,2]
[333391050,1722099040086,-200.0,9.532e-05,2]
[333391052,1722099040096,-230.39,9.568e-05,2]
[333391062,1722099040187,-495.855,9.568e-05,2]
[333391064,1722099040199,-73.755,9.568e-05,2]
[333391066,1722099040208,-151.13,9.729e-05,2]
[333391067,1722099040217,-151.13,9.738e-05,2]
[333391068,1722099040226,-151.13,9.748e-05,2]
[333391069,1722099040235,-151.13,9.758e-05,2]
[333391070,1722099040244,-151.13,9.768e-05,2]
[333391071,1722099040254,-50.26974592,9.777e-05,2]
[333391072,1722099040267,-100.86025408,9.777e-05,2]
[333391073,1722099040276,-1495.43974592,9.781e-05,2]
[333391091,1722099042879,-4.56025408,9.781e-05,2]
[333391092,1722099042889,-400.0,9.9e-05,3]
[333391093,1722099042898,-1052.66,9.904e-05,2]
[333391094,1722099042907,-150.0,9.904e-05,2]
[333391095,1722099042916,-150.0,9.904e-05,2]
[333391096,1722099042926,-150.47,9.904e-05,2]
[333391097,1722099042936,-425.61,9.904e-05,2]
[333391098,1722099042947,-355.93,9.904e-05,2]
[333391099,1722099042957,-150.0,9.904e-05,2]
[333391100,1722099042967,-150.0,9.904e-05,2]
[333391101,1722099042977,-355.93,9.904e-05,2]
[333391102,1722099042987,-355.93,9.904e-05,2]
[333391103,1722099042996,-150.0,9.904e-05,2]
[333391104,1722099043006,-353.52,9.904e-05,2]
[333391105,1722099043016,-150.0,9.999e-05,2]
[333391106,1722099043025,-12804.49110925,0.0001,2]
[333391107,1722099043035,-155.0,0.0001,2]
[333391108,1722099043045,-800.0,0.0001,3]
[333391109,1722099043054,-839.03,0.00010055,2]
[333391110,1722099043064,-1200.0,0.000101,3]
[333391111,1722099043074,-1700.0,0.000102,3]
[333391112,1722099043084,-5853.7308,0.000103,2]
[333391113,1722099043093,-641.47,0.000103,2]
[333391114,1722099043103,-2100.0,0.000103,3]
[333391115,1722099043112,-400.0,0.000104,3]
[333391116,1722099043122,-434.61,0.00010456,2]
[333391117,1722099043131,-337.46431487,0.0001049,2]
[333391118,1722099043141,-5104.7324,0.000105,2]
[333391119,1722099043150,-326.2628,0.000105,2]
[333391120,1722099043160,-1000.0,0.000105,2]
[333391121,1722099043169,-13482.4663,0.000105,2]
[333391122,1722099043178,-679.8807,0.000105,2]
[333391123,1722099043187,-3103.9289,0.000105,2]
[333391124,1722099043197,-7500.0,0.000105,2]
[333391125,1722099043206,-167.77557861,0.000105,2]
[333391126,1722099043215,-400.0,0.000105,3]
[333391127,1722099043225,-209.87546738,0.00010599,2]
[333391128,1722099043234,-5076.22837774,0.00010599,2]
[333391129,1722099043245,-212324.03565722,0.000106,2]
[333391130,1722099043270,-661.3131406,0.000106,2]
[333391131,1722099043281,-10816.48049096,0.000106,2]
[333391132,1722099043292,-553.26508119,0.000106,2]
[333391133,1722099043306,-6679.72932,0.000106,2]
[333391134,1722099043322,-414.8314846,0.000106,2]
[333391135,1722099043333,-1682.23970874,0.000106,2]
[333391136,1722099043346,-38710.46975587,0.000106,2]
[333391137,1722099043358,-1516.6,0.000106,2]
[333391138,1722099043382,-289689.97032344,0.000106,2]
[333391140,1722099043391,-165.79910064,0.000106,2]
[333391142,1722099043401,-150.0,0.000106,2]
[333391144,1722099043411,-150.0,0.000106,2]
[333391146,1722099043420,-150.0,0.000106,2]
[333391148,1722099043429,-150.0,0.000106,2]
[333391150,1722099043439,-150.0,0.000106,2]
[333391151,1722099043449,-150.0,0.000106,2]
[333391153,1722099043458,-150.0,0.000106,2]
[333391155,1722099043468,-3000.0,0.000106,2]
[333391157,1722099043478,-400.0,0.000106,3]
[333391159,1722099043487,-150.0,0.000107,2]
[333391161,1722099043497,-150.0,0.000107,2]
[333391163,1722099043506,-167.7755786,0.000107,2]
[333391166,1722099043515,-400.0,0.000107,3]
[333391169,1722099043525,-200.0,0.00010724,2]
[333391172,1722099043534,-800.0,0.00010764,2]
[333391174,1722099043543,-152.0,0.0001078,3]
[333391176,1722099043553,-500.0,0.00010792,2]
[333391177,1722099043562,-1504.27976991,0.000108,2]
[333391178,1722099043572,-150.0,0.000108,2]
[333391179,1722099043582,-150.0,0.000108,2]
[333391180,1722099043593,-768.0,0.000108,3]
[333391181,1722099043604,-1254.0,0.00010828,2]
[333391182,1722099043613,-445.0,0.00010828,2]
[333391183,1722099043623,-450.0,0.00010828,2]
[333391184,1722099043632,-809.0,0.00010828,2]
[333391185,1722099043642,-621.0,0.00010828,2]
[333391186,1722099043652,-2382.0,0.00010828,2]
[333391187,1722099043661,-550.0,0.00010828,2]
[333391188,1722099043670,-150.0,0.00010828,2]
[333391189,1722099043680,-3283.0,0.00010828,2]
[333391190,1722099043689,-150.0,0.00010828,2]
[333391191,1722099043699,-1994.0,0.00010828,2]
[333391192,1722099043708,-1301.0,0.00010828,2]
[333391193,1722099043717,-21075.553,0.00010828,2]
[333391194,1722099043727,-150.29,0.00010828,2]
[333391195,1722099043736,-1202.0,0.00010828,2]
[333391196,1722099043746,-5123.0,0.00010828,2]
[333391197,1722099043755,-150.0,0.00010828,2]
[333391198,1722099043764,-1668.0,0.00010828,2]
[333391199,1722099043773,-5831.0,0.00010828,2]
[333391200,1722099043782,-48718.0,0.00010849,2]
[333391201,1722099043791,-500.0,0.00010852,2]
[333391202,1722099043800,-174.12206239,0.00010858,2]
[333391203,1722099043810,-161.65490897,0.00010858,2]
[333391204,1722099043819,-177.34217462,0.00010858,2]
[333391205,1722099043830,-1000.0,0.00010858,2]
[333391206,1722099043840,-174.12206237,0.00010869,2]
[333391207,1722099043850,-163.89473342,0.00010871,2]
[333391208,1722099043859,-163.89473342,0.00010877,2]
[333391209,1722099043869,-174.12206237,0.00010879,2]
[333391210,1722099043878,-381.42322202,0.00010881,2]
[333391211,1722099043888,-163.89473342,0.00010884,2]
[333391212,1722099043897,-385.80953372,0.00010889,2]
[333391213,1722099043907,-174.12206237,0.0001089,2]
[333391214,1722099043917,-193.746,0.00010896,2]
[333391215,1722099043926,-206.27,0.00010896,2]
[333391216,1722099043936,-167.10615579,0.00010899,2]
[333391217,1722099043947,-167.10615579,0.00010899,2]
[333391218,1722099043957,-167.10615579,0.00010899,2]
[333391219,1722099043967,-167.10615579,0.00010899,2]
[333391220,1722099043976,-895.61599254,0.00010899,2]
[333391221,1722099043985,-895.61599251,0.00010899,2]
[333391222,1722099043995,-895.61599251,0.00010899,2]
[333391223,1722099044004,-895.61599251,0.00010899,2]
[333391224,1722099044014,-895.61599251,0.00010899,2]
[333391225,1722099044023,-895.61599251,0.00010899,2]
[333391226,1722099044033,-5877.22181657,0.000109,2]
[333391227,1722099044042,-174.12206237,0.000109,2]
[333391228,1722099044051,-167.7755786,0.000109,2]
[333391229,1722099044061,-182.54882854,0.000109,2]
[333391230,1722099044070,-182.54882854,0.000109,2]
[333391231,1722099044081,-12.11824589,0.000109,2]
[333391232,1722099045932,-895.61599251,0.00010899,2]
[333391233,1722099045942,-154.9879099,0.000109,2]
[333391234,1722099045951,-575.34771375,0.000109,2]
[333391235,1722099045962,-275.962,0.000109,2]
[333391236,1722099045989,-307.96251679,0.000109,2]
[333391237,1722099045998,-168.26463088,0.000109,2]
[333391238,1722099046007,-168.26463085,0.000109,2]
[333391239,1722099046016,-168.26463085,0.000109,2]
[333391240,1722099046026,-168.26463085,0.000109,2]
[333391241,1722099046035,-168.26463085,0.000109,2]
[333391242,1722099046044,-153.84,0.000109,2]
[333391243,1722099046053,-1002.77105819,0.000109,2]
[333391244,1722099046064,-758.67959351,0.000109,2]
[333391245,1722099046073,-219.39,0.00010904,2]
[333391246,1722099046081,-144.52909713,0.00010911,2]
[333391247,1722099046093,-355.47090287,0.00010911,2]
[333391248,1722099046102,-153.84,0.00010948,2]
[333391249,1722099046111,-541.0,0.00010958,2]
[333391250,1722099046120,-414.86262764,0.00010958,2]
[333391251,1722099046131,-85.13737236,0.00010958,2]
[333391252,1722099046141,-256.44,0.00010958,2]
[333391253,1722099046150,-500.0,0.00010958,2]
[333391254,1722099046159,-241.04254369,0.00010958,2]
[333391255,1722099046170,-258.95745631,0.00010958,2]
[333391256,1722099046179,-216.85652938,0.00010958,2]
[333391257,1722099046195,-283.14347062,0.00010958,2]
[333391258,1722099046205,-414.77950997,0.00010958,2]
[333391259,1722099046216,-99.66049003,0.00010958,2]
[333391260,1722099046225,-500.0,0.00010958,2]
[333391261,1722099046234,-500.0,0.00010958,2]
[333391262,1722099046243,-500.0,0.00010958,2]
[333391263,1722099046252,-500.0,0.00010958,2]
[333391264,1722099046265,-469.12,0.00010958,2]
[333391265,1722099046274,-500.0,0.00010958,2]
[333391266,1722099046283,-500.0,0.00010958,2]
[333391267,1722099046292,-500.0,0.00010958,2]
[333391268,1722099046303,-500.0,0.00010958,2]
[333391269,1722099046312,-500.0,0.00010958,2]
[333391270,1722099046321,-467.76979455,0.00010958,2]
[333391272,1722099046974,-32.23020545,0.00010958,2]
[333391273,1722099046985,-500.0,0.00010958,2]
[333391274,1722099046995,-500.0,0.00010958,2]
[333391275,1722099047004,-500.0,0.00010958,2]
[333391276,1722099047013,-500.0,0.00010958,2]
[333391277,1722099047023,-500.0,0.00010958,2]
[333391278,1722099047032,-500.0,0.00010958,2]
[333391279,1722099047041,-500.0,0.00010958,2]
[333391280,1722099047050,-541.12,0.00010958,2]
[333391281,1722099047059,-500.0,0.00010958,2]
[333391282,1722099047068,-500.0,0.00010958,2]
[333391283,1722099047077,-500.0,0.00010958,2]
[333391284,1722099047087,-500.0,0.00010958,2]
[333391285,1722099047096,-500.0,0.00010958,2]
[333391286,1722099047108,-500.0,0.00010958,2]
[333391287,1722099047117,-351.10339928,0.00010958,2]
[333391288,1722099047126,-477.46,0.00010958,2]
[333391289,1722099047135,-500.0,0.00010958,2]
[333391290,1722099047144,-500.0,0.00010958,2]
[333391291,1722099047154,-500.0,0.00010958,2]
[333391292,1722099047162,-500.0,0.00010958,2]
[333391293,1722099047171,-500.0,0.00010958,2]
[333391294,1722099047180,-500.0,0.00010958,2]
[333391295,1722099047190,-500.0,0.00010958,2]
[333391296,1722099047199,-500.0,0.00010958,2]
[333391297,1722099047208,-500.0,0.00010958,2]
[333391298,1722099047217,-500.0,0.00010958,2]
[333391299,1722099047227,-500.0,0.00010958,2]
[333391300,1722099047235,-579.840001,0.00010958,2]
[333391301,1722099047245,-500.0,0.00010958,2]
[333391302,1722099047255,-500.0,0.00010958,2]
[333391303,1722099047268,-500.0,0.00010958,2]
[333391304,1722099047277,-500.0,0.00010958,2]
[333391305,1722099047286,-500.0,0.00010958,2]
[333391306,1722099047295,-500.0,0.00010958,2]
[333391307,1722099047306,-231.0,0.00010958,2]
[333391308,1722099047314,-500.0,0.00010958,2]
[333391309,1722099047324,-419.52998,0.00010958,2]
[333391310,1722099047334,-505.16039715,0.00010958,2]
[333391311,1722099047343,-287.13058991,0.00010958,2]
[333391312,1722099047353,-262.02589412,0.00010958,2]
[333391313,1722099047362,-500.0,0.00010958,2]
[333391314,1722099047371,-500.0,0.00010958,2]
[333391315,1722099047380,-500.0,0.00010958,2]
[333391316,1722099047390,-313.06,0.00010958,2]
[333391317,1722099047399,-195.66441462,0.00010958,2]
[333391318,1722099047408,-500.0,0.00010958,2]
[333391319,1722099047417,-500.0,0.00010958,2]
[333391320,1722099047426,-500.0,0.00010958,2]
[333391321,1722099047435,-500.0,0.00010958,2]
[333391322,1722099047444,-500.0,0.00010958,2]
[333391323,1722099047454,-500.0,0.00010958,2]
[333391324,1722099047462,-500.0,0.00010958,2]
[333391325,1722099047471,-500.0,0.00010958,2]
[333391326,1722099047481,-500.0,0.00010958,2]
[333391327,1722099047490,-500.0,0.00010958,2]
[333391328,1722099047499,-500.0,0.00010958,2]
[333391329,1722099047508,-500.0,0.00010958,2]
[333391330,1722099047517,-500.0,0.00010958,2]
[333391331,1722099047526,-500.0,0.00010958,2]
[333391332,1722099047535,-500.0,0.00010958,2]
[333391333,1722099047544,-500.0,0.00010958,2]
[333391334,1722099047553,-538.84,0.00010958,2]
[333391335,1722099047561,-500.0,0.00010958,2]
[333391336,1722099047571,-500.0,0.00010958,2]
[333391337,1722099047580,-500.0,0.00010958,2]
[333391338,1722099047588,-501.12569932,0.00010958,2]
[333391339,1722099047597,-500.0,0.00010958,2]
[333391340,1722099047606,-500.0,0.00010958,2]
[333391341,1722099047615,-500.0,0.00010958,2]
[333391342,1722099047624,-500.0,0.00010958,2]
[333391343,1722099047634,-500.0,0.00010958,2]
[333391344,1722099047643,-500.0,0.00010958,2]
[333391345,1722099047652,-500.0,0.00010958,2]
[333391346,1722099047661,-186.0,0.00010958,2]
[333391347,1722099047671,-500.0,0.00010958,2]
[333391348,1722099047680,-500.0,0.00010958,2]
[333391349,1722099047689,-500.0,0.00010958,2]
[333391350,1722099047699,-500.0,0.00010958,2]
[333391351,1722099047708,-500.0,0.00010958,2]
[333391352,1722099047717,-500.0,0.00010958,2]
[333391353,1722099047726,-378.95,0.00010958,2]
[333391354,1722099047736,-501.27282953,0.00010958,2]
[333391355,1722099047745,-500.54647629,0.00010958,2]
[333391356,1722099047755,-500.0,0.00010958,2]
[333391357,1722099047764,-500.0,0.00010958,2]
[333391358,1722099047773,-500.0,0.00010958,2]
[333391359,1722099047782,-500.0,0.00010958,2]
[333391360,1722099047791,-500.0,0.00010958,2]
[333391361,1722099047801,-507.15368142,0.00010958,2]
[333391362,1722099047810,-500.0,0.00010958,2]
[333391363,1722099047820,-516.84847615,0.00010958,2]
[333391364,1722099047829,-500.0,0.00010958,2]
[333391365,1722099047839,-500.0,0.00010958,2]
[333391366,1722099047848,-500.0,0.00010958,2]
[333391367,1722099047858,-500.0,0.00010958,2]
[333391368,1722099047867,-500.0,0.00010958,2]
[333391369,1722099047876,-500.0,0.00010958,2]
[333391370,1722099047886,-500.0,0.00010958,2]
[333391371,1722099047896,-500.0,0.00010958,2]
[333391372,1722099047905,-500.0,0.00010958,2]
[333391373,1722099047915,-500.0,0.00010958,2]
[333391374,1722099047924,-500.0,0.00010958,2]
[333391375,1722099047934,-500.0,0.00010958,2]
[333391376,1722099047943,-500.0,0.00010958,2]
[333391377,1722099047953,-500.0,0.00010958,2]
[333391378,1722099047962,-500.0,0.00010958,2]
[333391379,1722099047972,-500.0,0.00010958,2]
[333391380,1722099047983,-500.0,0.00010958,2]
[333391381,1722099047994,-500.0,0.00010958,2]
[333391382,1722099048003,-500.0,0.00010958,2]
[333391383,1722099048012,-500.0,0.00010958,2]
[333391384,1722099048023,-508.627697,0.00010958,2]
[333391385,1722099048032,-500.0,0.00010958,2]
[333391386,1722099048042,-256.53396405,0.00010958,2]
[333391387,1722099048052,-500.0,0.00010958,2]
[333391388,1722099048063,-500.0,0.00010958,2]
[333391389,1722099048073,-368.88,0.00010958,2]
[333391390,1722099048082,-500.0,0.00010958,2]
[333391391,1722099048092,-500.0,0.00010958,2]
[333391392,1722099048102,-500.0,0.00010958,2]
[333391393,1722099048112,-500.0,0.00010958,2]
[333391394,1722099048121,-520.08700085,0.00010958,2]
[333391395,1722099048131,-500.0,0.00010958,2]
[333391396,1722099048140,-443.53342186,0.00010958,2]
[333391397,1722099048149,-500.0,0.00010958,2]
[333391398,1722099048159,-646.66,0.00010958,2]
[333391399,1722099048168,-500.0,0.00010958,2]
[333391400,1722099048177,-500.0,0.00010958,2]
[333391401,1722099048186,-500.0,0.00010958,2]
[333391402,1722099048195,-500.0,0.00010958,2]
[333391403,1722099048207,-500.0,0.00010958,2]
[333391404,1722099048216,-500.0,0.00010958,2]
[333391405,1722099048226,-500.0,0.00010958,2]
[333391406,1722099048235,-500.0,0.00010958,2]
[333391407,1722099048244,-500.0,0.00010958,2]
[333391408,1722099048254,-500.0,0.00010958,2]
[333391409,1722099048268,-500.0,0.00010958,2]
[333391410,1722099048278,-500.0,0.00010958,2]
[333391411,1722099048288,-500.0,0.00010958,2]
[333391412,1722099048298,-1116.3,0.00010958,2]
[333391413,1722099048308,-1116.3,0.00010958,2]
[333391414,1722099048319,-1116.3,0.00010958,2]
[333391415,1722099048329,-1116.3,0.00010958,2]
[333391416,1722099048339,-1116.3,0.00010958,2]
[333391417,1722099048350,-1116.3,0.00010958,2]
[333391418,1722099048359,-1116.3,0.00010958,2]
[333391419,1722099048369,-1116.3,0.00010958,2]
[333391420,1722099048379,-1116.3,0.00010958,2]
[333391421,1722099048389,-1116.3,0.00010958,2]
[333391422,1722099048398,-500.0,0.00010958,2]
[333391423,1722099048407,-500.0,0.00010958,2]
[333391424,1722099048416,-189.37,0.00010958,2]
[333391425,1722099048426,-500.0,0.00010958,2]
[333391426,1722099048435,-500.0,0.00010958,2]
[333391427,1722099048445,-500.0,0.00010958,2]
[333391428,1722099048455,-500.0,0.00010958,2]
[333391429,1722099048465,-500.0,0.00010958,2]
[333391430,1722099048474,-500.0,0.00010958,2]
[333391431,1722099048483,-500.0,0.00010958,2]
[333391432,1722099048492,-500.0,0.00010958,2]
[333391433,1722099048501,-500.0,0.00010958,2]
[333391434,1722099048510,-500.0,0.00010958,2]
[333391435,1722099048520,-500.0,0.00010958,2]
[333391436,1722099048529,-500.0,0.00010958,2]
[333391437,1722099048710,-500.0,0.00010958,2]
[333391438,1722099048720,-500.0,0.00010958,2]
[333391439,1722099048730,-291.59139235,0.00010958,2]
[333391440,1722099048739,-500.0,0.00010958,2]
[333391441,1722099048749,-500.0,0.00010958,2]
[333391442,1722099048759,-500.0,0.00010958,2]
[333391443,1722099048768,-500.0,0.00010958,2]
[333391444,1722099048777,-500.0,0.00010958,2]
[333391445,1722099048787,-500.0,0.00010958,2]
[333391446,1722099048796,-500.0,0.00010958,2]
[333391447,1722099048805,-500.0,0.00010958,2]
[333391448,1722099048815,-500.0,0.00010958,2]
[333391449,1722099048824,-500.0,0.00010958,2]
[333391450,1722099048834,-500.0,0.00010958,2]
[333391451,1722099048844,-500.0,0.00010958,2]
[333391452,1722099048854,-500.0,0.00010958,2]
[333391453,1722099048864,-500.0,0.00010958,2]
[333391454,1722099048873,-500.0,0.00010958,2]
[333391455,1722099048883,-500.0,0.00010958,2]
[333391456,1722099048893,-500.0,0.00010958,2]
[333391457,1722099048903,-500.0,0.00010958,2]
[333391458,1722099048913,-500.0,0.00010958,2]
[333391459,1722099048923,-500.0,0.00010958,2]
[333391460,1722099048934,-500.0,0.00010958,2]
[333391461,1722099048944,-500.0,0.00010958,2]
[333391462,1722099048954,-500.0,0.00010958,2]
[333391463,1722099048965,-397.6459235,0.00010958,2]
[333391464,1722099048975,-500.0,0.00010958,2]
[333391465,1722099048985,-500.0,0.00010958,2]
[333391466,1722099048995,-500.0,0.00010958,2]
[333391467,1722099049004,-500.0,0.00010958,2]
[333391468,1722099049013,-500.0,0.00010958,2]
[333391469,1722099049023,-500.0,0.00010958,2]
[333391470,1722099049032,-500.0,0.00010958,2]
[333391471,1722099049042,-500.0,0.00010958,2]
[333391472,1722099049051,-500.0,0.00010958,2]
[333391473,1722099049060,-500.0,0.00010958,2]
[333391474,1722099049070,-500.0,0.00010958,2]
[333391475,1722099049080,-500.0,0.00010958,2]
[333391476,1722099049090,-500.0,0.00010958,2]
[333391477,1722099049099,-308.10604683,0.00010958,2]
[333391478,1722099049110,-346.58,0.00010958,2]
[333391479,1722099049120,-500.0,0.00010958,2]
[333391480,1722099049129,-579.67,0.00010958,2]
[333391481,1722099049139,-500.0,0.00010958,2]
[333391482,1722099049148,-500.0,0.00010958,2]
[333391483,1722099049158,-500.0,0.00010958,2]
[333391484,1722099049167,-500.0,0.00010958,2]
[333391485,1722099049177,-582.25,0.00010958,2]
[333391486,1722099049187,-341.83431024,0.00010958,2]
[333391487,1722099049196,-441.7172048,0.00010958,2]
[333391488,1722099049207,-540.72,0.00010958,2]
[333391489,1722099049217,-438.89,0.00010958,2]
[333391490,1722099049226,-500.0,0.00010958,2]
[333391491,1722099049235,-293.34,0.00010958,2]
[333391492,1722099049246,-177.19,0.00010958,2]
[333391493,1722099049259,-570.68076811,0.00010958,2]
[333391494,1722099049270,-500.0,0.00010958,2]
[333391495,1722099049279,-590.75,0.00010958,2]
[333391496,1722099049289,-350.28635052,0.00010958,2]
[333391497,1722099049299,-500.0,0.00010958,2]
[333391498,1722099049309,-500.0,0.00010958,2]
[333391499,1722099049318,-359.62,0.00010958,2]
[333391500,1722099049327,-500.0,0.00010958,2]
[333391501,1722099049338,-188.47,0.00010958,2]
[333391502,1722099049348,-500.0,0.00010958,2]
[333391503,1722099049357,-500.0,0.00010958,2]
[333391504,1722099049367,-315.92,0.00010958,2]
[333391505,1722099049376,-500.0,0.00010958,2]
[333391506,1722099049385,-500.0,0.00010958,2]
[333391507,1722099049395,-500.0,0.00010958,2]
[333391508,1722099049405,-500.0,0.00010958,2]
[333391509,1722099049415,-500.0,0.00010958,2]
[333391510,1722099049425,-500.0,0.00010958,2]
[333391511,1722099049436,-500.0,0.00010958,2]
[333391512,1722099049446,-585.57162109,0.00010958,2]
[333391513,1722099049457,-500.0,0.00010958,2]
[333391514,1722099049467,-500.0,0.00010958,2]
[333391515,1722099049478,-500.0,0.00010958,2]
[333391516,1722099049489,-500.0,0.00010958,2]
[333391517,1722099049498,-500.0,0.00010958,2]
[333391518,1722099049508,-500.0,0.00010958,2]
[333391519,1722099049518,-500.0,0.00010958,2]
[333391520,1722099049529,-500.0,0.00010958,2]
[333391521,1722099049539,-500.0,0.00010958,2]
[333391522,1722099049549,-500.0,0.00010958,2]
[333391523,1722099049560,-500.0,0.00010958,2]
[333391524,1722099049571,-500.0,0.00010958,2]
[333391525,1722099049581,-500.0,0.00010958,2]
[333391526,1722099049592,-500.0,0.00010958,2]
[333391527,1722099049603,-500.0,0.00010958,2]
[333391528,1722099049614,-500.0,0.00010958,2]
[333391529,1722099049624,-500.0,0.00010958,2]
[333391530,1722099049635,-500.34145299,0.00010958,2]
[333391531,1722099049645,-500.0,0.00010958,2]
[333391532,1722099049657,-500.0,0.00010958,2]
[333391533,1722099049668,-500.0,0.00010958,2]
[333391534,1722099049679,-500.0,0.00010958,2]
[333391535,1722099049689,-540.80932232,0.00010958,2]
[333391536,1722099049701,-280.6018754,0.00010958,2]
[333391537,1722099049713,-500.0,0.00010958,2]
[333391538,1722099049723,-500.0,0.00010958,2]
[333391539,1722099049733,-500.0,0.00010958,2]
[333391540,1722099049744,-500.0,0.00010958,2]
[333391541,1722099049754,-500.0,0.00010958,2]
[333391542,1722099049764,-500.0,0.00010958,2]
[333391543,1722099049774,-500.0,0.00010958,2]
[333391544,1722099049784,-500.0,0.00010958,2]
[333391545,1722099049795,-500.0,0.00010958,2]
[333391546,1722099049806,-500.0,0.00010958,2]
[333391547,1722099049816,-500.0,0.00010958,2]
[333391548,1722099049827,-500.0,0.00010958,2]
[333391549,1722099049837,-500.0,0.00010958,2]
[333391550,1722099049847,-500.0,0.00010958,2]
[333391551,1722099049857,-500.0,0.00010958,2]
[333391552,1722099049867,-500.0,0.00010958,2]
[333391553,1722099049877,-500.0,0.00010958,2]
[333391554,1722099049887,-500.0,0.00010958,2]
[333391555,1722099049897,-500.0,0.00010958,2]
[333391556,1722099049907,-500.0,0.00010958,2]
[333391557,1722099049917,-500.0,0.00010958,2]
[333391558,1722099049927,-500.0,0.00010958,2]